bitfinex/quotes_BTCUSD_20240718
["timestamp","ask_amount","ask_price","bid_price","bid_amount"]
[1721291810298,0.002794,64786.0,64785.0,0.483869]
[1721291810299,0.04613539,64786.0,64785.0,0.483869]
[1721291810462,0.54320309,64788.0,64785.0,0.483869]
[1721291810463,0.52013539,64788.0,64787.0,0.154351]
[1721291810662,0.52013539,64788.0,64787.0,0.175151]
[1721291811085,0.474,64788.0,64787.0,0.175151]
[1721291811513,0.62013676,64788.0,64787.0,0.175151]
[1721291812039,1.0832175,64788.0,64787.0,0.0208]
[1721291812226,1.2375665,64788.0,64787.0,0.0208]
[1721291813382,1.2385665,64788.0,64787.0,0.0218]
[1721291813539,1.2385665,64788.0,64787.0,0.0228]
[1721291813749,0.7645665,64788.0,64787.0,0.0228]
[1721291814176,0.40973074,64788.0,64787.0,0.0228]
[1721291814392,0.3558545,64788.0,64787.0,0.0228]
[1721291814554,0.30973074,64788.0,64787.0,0.02873599]
[1721291814761,0.61842974,64788.0,64787.0,0.02873599]
[1721291815156,0.6645535,64788.0,64787.0,0.002]
[1721291815337,0.61842974,64788.0,64787.0,0.002]
[1721291815805,0.92712874,64788.0,64787.0,0.002]
[1721291815923,0.99631438,64788.0,64787.0,0.002]
[1721291816125,0.92712874,64788.0,64787.0,0.002]
[1721291816730,1.01937626,64788.0,64787.0,0.002]
[1721291817155,0.92712874,64788.0,64787.0,0.002]
[1721291818493,0.92712874,64788.0,64787.0,0.0228]
[1721291818683,0.99629787,64788.0,64787.0,0.0228]
[1721291819243,0.92712874,64788.0,64787.0,0.0228]
[1721291819422,0.99629787,64788.0,64787.0,0.02874028]
[1721291820259,0.92712874,64788.0,64787.0,0.02874028]
[1721291820436,0.9962966,64788.0,64787.0,0.02874028]
[1721291821931,0.2245496,64788.0,64787.0,0.02874028]
[1721291822143,0.001,64788.0,64787.0,0.49179428]
[1721291822347,0.001,64788.0,64787.0,0.18309128]
[1721291822548,0.00184,64788.0,64787.0,0.18309128]
[1721291822951,0.00184,64788.0,64787.0,0.25829128]
[1721291825742,0.00184,64788.0,64787.0,0.10394028]
[1721291826481,0.156189,64788.0,64787.0,0.10394028]
[1721291826891,0.00184,64788.0,64787.0,0.098]
[1721291827041,0.00184,64788.0,64787.0,0.10393036]
[1721291830573,0.00184,64788.0,64787.0,1.25157723]
[1721291830936,0.00184,64788.0,64787.0,1.27457723]
[1721291831713,0.00184,64788.0,64787.0,1.27149036]
[1721291832035,0.00184,64788.0,64787.0,0.65408436]
[1721291832453,0.00084,64788.0,64787.0,0.95578736]
[1721291832684,0.00084,64788.0,64787.0,0.95678736]
[1721291832863,0.00084,64788.0,64787.0,0.95778736]
[1721291833224,0.00084,64788.0,64787.0,0.95678736]
[1721291834055,0.00084,64788.0,64787.0,0.95778736]
[1721291834307,0.00084,64788.0,64787.0,1.26649036]
[1721291834509,0.00084,64788.0,64787.0,1.26549036]
[1721291835807,0.00084,64788.0,64787.0,1.62319336]
[1721291836011,0.00084,64788.0,64787.0,2.31543543]
[1721291836209,0.00083,64791.0,64790.0,1.5916]
[1721291836386,0.00083,64791.0,64790.0,1.89713907]
[1721291836742,0.00083,64791.0,64790.0,2.08357829]
[1721291836859,0.00083,64791.0,64790.0,2.31172164]
[1721291837271,0.002794,64805.0,64804.0,0.0158]
[1721291837505,0.01612909,64816.0,64815.0,0.555855]
[1721291837756,0.474,64819.0,64818.0,0.478634]
[1721291837967,0.0035131,64826.0,64824.0,0.0158]
[1721291838141,0.30864274,64825.0,64823.0,0.0158]
[1721291838694,0.30864274,64825.0,64824.0,0.0158]
[1721291838840,0.40864274,64825.0,64824.0,0.0158]
[1721291839046,0.40864274,64825.0,64824.0,0.02168172]
[1721291839246,0.40864274,64825.0,64824.0,0.00588172]
[1721291839668,0.40864274,64825.0,64823.0,0.0158]
[1721291839879,0.40864274,64825.0,64824.0,0.00688172]
[1721291840282,1.02568674,64825.0,64824.0,0.00688172]
[1721291840654,1.02568674,64825.0,64824.0,0.001]
[1721291841243,1.02668674,64825.0,64824.0,0.002]
[1721291842681,1.14192588,64825.0,64824.0,0.002]
[1721291843163,1.48120874,64825.0,64824.0,0.002]
[1721291844833,0.71816474,64825.0,64824.0,0.002]
[1721291844967,0.71816474,64825.0,64824.0,0.0178]
[1721291844968,0.40964274,64825.0,64824.0,0.0178]
[1721291845153,0.71816474,64825.0,64824.0,0.002]
[1721291845563,1.02668674,64825.0,64824.0,0.002]
[1721291847359,1.19421963,64825.0,64824.0,0.002]
[1721291847537,1.58504163,64825.0,64824.0,0.002]
[1721291848575,1.48040874,64825.0,64824.0,0.002]
[1721291851548,1.8760704,64825.0,64824.0,0.002]
[1721291851749,2.4400724,64825.0,64824.0,0.002]
[1721291851957,2.46421562,64825.0,64824.0,0.002]
[1721291852161,2.51013228,64825.0,64824.0,0.002]
[1721291852365,2.61856519,64825.0,64824.0,0.002]
[1721291852964,2.61866143,64825.0,64824.0,0.001]
[1721291853170,2.70868032,64825.0,64824.0,0.002]
[1721291853382,2.70868032,64825.0,64824.0,0.001]
[1721291853587,2.70868032,64825.0,64824.0,0.002]
[1721291853997,2.80051364,64825.0,64824.0,0.002]
[1721291854197,2.46531186,64825.0,64824.0,0.002]
[1721291854651,2.46614186,64825.0,64824.0,0.002]
[1721291854852,2.43194186,64825.0,64824.0,0.002]
[1721291855255,1.86793986,64825.0,64824.0,0.002]
[1721291855454,2.03063986,64825.0,64824.0,0.002]
[1721291855686,2.18498943,64825.0,64824.0,0.002]
[1721291856135,2.23816509,64825.0,64824.0,0.002]
[1721291856364,2.23816509,64825.0,64824.0,0.001]
[1721291856768,0.462891,64810.0,64809.0,0.0158]
[1721291856968,0.71727274,64810.0,64809.0,0.0158]
[1721291857166,0.71527274,64810.0,64809.0,0.02167507]
[1721291857402,0.71527274,64810.0,64809.0,0.00587507]
[1721291857403,1.02386674,64810.0,64809.0,0.00587507]
[1721291857626,0.462898,64809.0,64808.0,0.000913]
[1721291857850,0.71727974,64809.0,64808.0,0.000913]
[1721291858076,0.71527974,64809.0,64808.0,0.000913]
[1721291858369,0.71527974,64809.0,64808.0,0.02258847]
[1721291858815,0.71627974,64809.0,64808.0,0.02358847]
[1721291859036,0.40768074,64809.0,64808.0,0.02358847]
[1721291860024,1.02487874,64809.0,64808.0,0.00778847]
[1721291860531,1.02487874,64809.0,64808.0,0.001913]
[1721291860767,1.33347774,64809.0,64808.0,0.001913]
[1721291861251,1.38750675,64809.0,64808.0,0.001913]
[1721291861487,1.38650675,64809.0,64808.0,0.001913]
[1721291861945,1.38550675,64809.0,64808.0,0.000913]
[1721291862172,1.38550675,64809.0,64808.0,0.001913]
[1721291862403,1.33547774,64809.0,64808.0,0.002913]
[1721291862822,1.3898141,64809.0,64808.0,0.002913]
[1721291863047,1.33547774,64809.0,64808.0,0.001913]
[1721291863430,1.3895864,64809.0,64808.0,0.002913]
[1721291863636,1.33547774,64809.0,64808.0,0.002913]
[1721291864243,1.38956345,64809.0,64808.0,0.002913]
[1721291864424,1.38556345,64809.0,64808.0,0.001913]
[1721291864833,1.38556345,64809.0,64808.0,0.000913]
[1721291865095,1.38956345,64809.0,64808.0,0.001913]
[1721291865294,1.38956345,64809.0,64808.0,0.002913]
[1721291865498,1.38556345,64809.0,64808.0,0.001913]
[1721291865835,1.38556345,64809.0,64808.0,0.002913]
[1721291865836,1.38956345,64809.0,64808.0,0.002913]
[1721291868579,1.38954454,64809.0,64808.0,0.002913]
[1721291869193,1.41368904,64809.0,64808.0,0.002913]
[1721291869377,1.45977094,64809.0,64808.0,0.002913]
[1721291871256,1.41368904,64809.0,64808.0,0.002913]
[1721291871712,1.41372786,64809.0,64808.0,0.002913]
[1721291872381,1.48285071,64809.0,64808.0,0.002913]
[1721291872587,1.90252686,64809.0,64808.0,0.002913]
[1721291872972,1.99180215,64809.0,64808.0,0.002913]
[1721291873172,1.90252686,64809.0,64808.0,0.002913]
[1721291873379,1.95760243,64809.0,64808.0,0.002913]
[1721291873575,1.86432686,64809.0,64808.0,0.001913]
[1721291873983,1.95367262,64809.0,64808.0,0.001913]
[1721291874206,2.09191833,64809.0,64808.0,0.001913]
[1721291874919,2.0031292,64809.0,64808.0,0.000913]
[1721291875067,2.09555139,64809.0,64808.0,0.001913]
[1721291875292,2.09555139,64809.0,64808.0,0.002913]
[1721291875675,1.95409835,64809.0,64808.0,0.001913]
[1721291875878,1.95409835,64809.0,64808.0,0.003913]
[1721291875879,2.09556321,64809.0,64808.0,0.003913]
[1721291876456,1.95709835,64809.0,64808.0,0.003913]
[1721291877049,1.99129835,64809.0,64808.0,0.003913]
[1721291877254,1.95709835,64809.0,64808.0,0.003913]
[1721291877892,1.99129835,64809.0,64808.0,0.003913]
[1721291878088,2.13471968,64809.0,64808.0,0.003913]
[1721291878497,2.85314825,64809.0,64808.0,0.003913]
[1721291879402,2.66459868,64809.0,64808.0,0.003913]
[1721291879834,2.57181868,64809.0,64808.0,0.003913]
[1721291880161,2.10051968,64809.0,64808.0,0.003913]
[1721291880890,2.09946857,64809.0,64808.0,0.003913]
[1721291881484,1.64486957,64809.0,64808.0,0.003913]
[1721291881685,1.55607108,64809.0,64808.0,0.003913]
[1721291881888,1.55875961,64809.0,64808.0,0.003913]
[1721291882910,1.6741039,64809.0,64808.0,0.003913]
[1721291883279,1.19636156,64809.0,64808.0,0.003913]
[1721291883526,1.24957783,64809.0,64808.0,0.003913]
[1721291883931,0.63237983,64809.0,64808.0,0.019713]
[1721291884135,0.4733552,64809.0,64808.0,0.165113]
[1721291884334,0.29590935,64809.0,64808.0,0.626017]
[1721291884489,0.14933832,64809.0,64808.0,0.94052713]
[1721291884706,0.14933832,64809.0,64808.0,0.94152713]
[1721291884904,0.14933832,64809.0,64808.0,0.94052713]
[1721291885105,0.14633832,64809.0,64808.0,0.93952713]
[1721291885304,0.14633832,64809.0,64808.0,0.94052713]
[1721291885531,0.14633832,64809.0,64808.0,0.93952713]
[1721291885739,0.14633832,64809.0,64808.0,0.63092413]
[1721291885928,0.14633832,64809.0,64808.0,0.63292413]
[1721291885929,0.14933832,64809.0,64808.0,0.63292413]
[1721291886347,0.15233832,64809.0,64808.0,0.63392413]
[1721291886691,0.82334036,64809.0,64808.0,0.15522013]
[1721291886863,0.82334056,64809.0,64808.0,0.09082013]
[1721291887074,0.89363404,64809.0,64808.0,0.09082013]
[1721291887245,0.84748358,64809.0,64808.0,0.09082013]
[1721291887445,0.84748358,64809.0,64808.0,0.084913]
[1721291887625,0.91061216,64809.0,64808.0,0.083913]
[1721291887865,0.84030529,64809.0,64808.0,0.084913]
[1721291888251,0.83430529,64809.0,64808.0,0.081913]
[1721291888457,0.47198379,64809.0,64808.0,0.098713]
[1721291888775,0.47198379,64809.0,64808.0,0.099713]
[1721291888776,0.331334,64809.0,64808.0,0.099713]
[1721291888998,0.177035,64809.0,64808.0,0.10560629]
[1721291889506,0.331334,64809.0,64808.0,0.10460629]
[1721291889681,0.328334,64809.0,64808.0,0.10360629]
[1721291889884,0.328334,64809.0,64808.0,0.097713]
[1721291890073,0.328334,64809.0,64808.0,0.10460534]
[1721291890074,0.331334,64809.0,64808.0,0.10460534]
[1721291890276,0.177035,64809.0,64808.0,0.56750934]
[1721291890485,0.02265326,64809.0,64808.0,0.93741234]
[1721291890800,0.02265326,64809.0,64808.0,0.93841234]
[1721291891551,0.01965326,64809.0,64808.0,0.93841234]
[1721291891998,0.02265326,64809.0,64808.0,0.93941234]
[1721291892350,0.01965326,64809.0,64808.0,0.93641234]
[1721291892718,0.01965326,64809.0,64808.0,0.93841234]
[1721291892719,0.02265326,64809.0,64808.0,0.93841234]
[1721291894641,0.02265326,64809.0,64808.0,0.62980934]
[1721291894873,0.02265326,64809.0,64808.0,0.48750934]
[1721291895168,1.433231,64809.0,64808.0,0.00880534]
[1721291895371,1.533231,64809.0,64808.0,0.00880534]
[1721291895548,1.84183,64809.0,64808.0,0.002913]
[1721291895710,2.01087573,64809.0,64808.0,0.002913]
[1721291896156,2.00787573,64809.0,64808.0,0.001913]
[1721291896571,2.00787573,64809.0,64808.0,0.000913]
[1721291897171,2.06450894,64809.0,64808.0,0.001913]
[1721291897668,1.75590994,64809.0,64808.0,0.001913]
[1721291898656,1.75590994,64809.0,64808.0,0.002913]
[1721291899411,1.75594173,64809.0,64808.0,0.002913]
[1721291899771,1.75294173,64809.0,64808.0,0.001913]
[1721291900292,1.75594173,64809.0,64808.0,0.002913]
[1721291900720,1.75494173,64809.0,64808.0,0.002913]
[1721291901505,1.12534273,64809.0,64808.0,0.002913]
[1721291902148,1.12534273,64809.0,64808.0,0.018713]
[1721291902335,1.12534273,64809.0,64808.0,0.017713]
[1721291902493,1.12234273,64809.0,64808.0,0.016713]
[1721291902689,0.50514473,64809.0,64808.0,0.017713]
[1721291902943,0.81674373,64809.0,64808.0,0.017713]
[1721291903381,0.81374373,64809.0,64808.0,0.02358998]
[1721291903808,0.50814473,64809.0,64808.0,0.02358998]
[1721291903979,0.02165326,64809.0,64808.0,0.85559698]
[1721291904154,0.02165326,64809.0,64808.0,0.54799398]
[1721291904479,0.01865326,64809.0,64808.0,0.54699398]
[1721291904621,0.02165326,64809.0,64808.0,0.54799398]
[1721291905744,0.02165326,64809.0,64808.0,0.54699398]
[1721291905946,0.01865326,64809.0,64808.0,0.54699398]
[1721291906189,0.06486506,64809.0,64808.0,0.08408998]
[1721291906392,0.0678651,64809.0,64808.0,0.08408998]
[1721291906589,0.0678651,64809.0,64808.0,0.08508998]
[1721291907010,0.0678651,64809.0,64808.0,0.23939098]
[1721291907209,0.0648651,64809.0,64808.0,0.23939098]
[1721291907415,0.0678651,64809.0,64808.0,0.23939098]
[1721291907576,0.02165326,64809.0,64808.0,0.23939098]
[1721291907776,0.02165326,64809.0,64808.0,0.54799398]
[1721291908597,0.02165326,64809.0,64808.0,0.85659698]
[1721291911601,0.02165326,64809.0,64808.0,0.54799398]
[1721291911815,0.02165326,64809.0,64808.0,0.48749398]
[1721291913463,0.02165326,64809.0,64808.0,0.79609698]
[1721291919636,0.02165326,64809.0,64808.0,0.17889098]
[1721291920829,0.17595226,64809.0,64808.0,0.02458998]
[1721291921474,0.68510788,64809.0,64808.0,0.02458998]
[1721291921680,0.99370688,64809.0,64808.0,0.02458998]
[1721291921877,0.68510788,64809.0,64808.0,0.02458998]
[1721291922128,0.69243813,64809.0,64808.0,0.02458998]
[1721291922328,0.76173119,64809.0,64808.0,0.02458998]
[1721291922457,0.8152957,64809.0,64808.0,0.02458998]
[1721291923700,1.1238947,64809.0,64808.0,0.00878998]
[1721291924088,1.1238947,64809.0,64808.0,0.002913]
[1721291924321,1.05460164,64809.0,64808.0,0.002913]
[1721291925334,1.09342787,64809.0,64808.0,0.018713]
[1721291925539,0.83832521,64809.0,64808.0,0.018713]
[1721291925755,0.74593447,64809.0,64808.0,0.018713]
[1721291925976,0.74593447,64809.0,64808.0,0.02457544]
[1721291926182,0.74593447,64809.0,64808.0,0.16637544]
[1721291926183,0.12865473,64809.0,64808.0,0.16637544]
[1721291926411,0.1213822,64809.0,64808.0,0.314814]
[1721291926615,0.1213822,64809.0,64808.0,0.62929051]
[1721291926818,0.17515839,64809.0,64808.0,0.48749051]
[1721291927426,0.2444983,64809.0,64808.0,0.48749051]
[1721291927638,0.17515839,64809.0,64808.0,0.48749051]
[1721291930400,0.12165326,64809.0,64808.0,0.17888751]
[1721291930603,0.09101822,64809.0,64808.0,0.02458651]
[1721291931011,0.09101822,64809.0,64808.0,0.17888751]
[1721291931219,0.16726719,64809.0,64808.0,0.17888751]
[1721291931424,0.17502,64809.0,64808.0,0.17888751]
[1721291931594,0.26751435,64809.0,64808.0,0.17888751]
[1721291934129,0.16789906,64809.0,64808.0,0.17888751]
[1721291934534,0.12165326,64809.0,64808.0,0.17888751]
[1721291934745,0.06789849,64809.0,64808.0,0.17888751]
[1721291934971,0.07473077,64809.0,64808.0,0.02458651]
[1721291935196,0.16722124,64809.0,64808.0,0.02458651]
[1721291935350,0.29136299,64809.0,64808.0,0.018713]
[1721291935553,0.29136299,64809.0,64808.0,0.02458186]
[1721291936178,1.66774073,64809.0,64808.0,0.002913]
[1721291936382,1.69086335,64809.0,64808.0,0.002913]
[1721291936576,1.57525026,64809.0,64808.0,0.002913]
[1721291937158,1.57225026,64809.0,64808.0,0.001913]
[1721291937355,1.57525026,64809.0,64808.0,0.002913]
[1721291937679,1.52217275,64809.0,64808.0,0.001913]
[1721291937887,1.57536798,64809.0,64808.0,0.001913]
[1721291938080,1.57536798,64809.0,64808.0,0.002913]
[1721291939028,1.60365842,64809.0,64808.0,0.002913]
[1721291939203,1.88396698,64809.0,64808.0,0.002913]
[1721291940025,1.97272499,64809.0,64808.0,0.002913]
[1721291940369,1.88096698,64809.0,64808.0,0.001913]
[1721291940715,1.88153286,64809.0,64808.0,0.001913]
[1721291940912,1.88453286,64809.0,64808.0,0.002913]
[1721291941316,1.88453286,64809.0,64808.0,0.001913]
[1721291941699,1.88453286,64809.0,64808.0,0.002913]
[1721291942723,1.88153286,64809.0,64808.0,0.001913]
[1721291943121,1.88453286,64809.0,64808.0,0.002913]
[1721291946234,1.88472941,64809.0,64808.0,0.002913]
[1721291947402,1.97365855,64809.0,64808.0,0.002913]
[1721291947598,2.12972898,64809.0,64808.0,0.002913]
[1721291948220,1.97365855,64809.0,64808.0,0.002913]
[1721291948850,2.12972898,64809.0,64808.0,0.002913]
[1721291949196,1.83077175,64809.0,64808.0,0.002913]
[1721291949394,1.97379896,64809.0,64808.0,0.002913]
[1721291950226,1.88479142,64809.0,64808.0,0.002913]
[1721291952538,1.83077175,64809.0,64808.0,0.002913]
[1721291952683,1.88362662,64809.0,64808.0,0.002913]
[1721291953941,1.88062662,64809.0,64808.0,0.000913]
[1721291954346,1.88362662,64809.0,64808.0,0.001913]
[1721291955495,1.88371864,64809.0,64808.0,0.001913]
[1721291956486,1.88371864,64809.0,64808.0,0.002913]
[1721291957020,1.57511964,64809.0,64808.0,0.002913]
[1721291957154,1.66080552,64809.0,64808.0,0.002913]
[1721291957358,1.57132535,64809.0,64808.0,0.002913]
[1721291958522,1.57191379,64809.0,64808.0,0.002913]
[1721291959156,1.43327959,64809.0,64808.0,0.002913]
[1721291959851,1.43027959,64809.0,64808.0,0.001913]
[1721291960084,1.57191379,64809.0,64808.0,0.001913]
[1721291960318,1.43327959,64809.0,64808.0,0.001913]
[1721291960533,1.43327959,64809.0,64808.0,0.002913]
[1721291961457,1.12468059,64809.0,64808.0,0.018713]
[1721291961653,1.1243633,64809.0,64808.0,0.018713]
[1721291963689,1.1243633,64809.0,64808.0,0.017713]
[1721291963690,1.1213633,64809.0,64808.0,0.017713]
[1721291964036,1.1243633,64809.0,64808.0,0.018713]
[1721291964438,1.1946633,64809.0,64808.0,0.018713]
[1721291965461,1.1946633,64809.0,64808.0,0.017713]
[1721291965816,1.1946633,64809.0,64808.0,0.002913]
[1721291966262,1.2607633,64809.0,64808.0,0.002913]
[1721291966667,1.3994326,64809.0,64808.0,0.002913]
[1721291966876,1.2607633,64809.0,64808.0,0.018713]
[1721291967077,1.1946633,64809.0,64808.0,0.002913]
[1721291967249,1.33335326,64809.0,64808.0,0.002913]
[1721291967869,1.33326282,64809.0,64808.0,0.002913]
[1721291968445,1.28221546,64809.0,64808.0,0.002913]
[1721291968669,1.59081446,64809.0,64808.0,0.002913]
[1721291969866,1.59065615,64809.0,64808.0,0.002913]
[1721291970705,1.5031663,64809.0,64808.0,0.002913]
[1721291970902,1.45057275,64809.0,64808.0,0.002913]
[1721291971104,1.59023404,64809.0,64808.0,0.002913]
[1721291971885,1.58723404,64809.0,64808.0,0.000913]
[1721291972202,1.58723404,64809.0,64808.0,0.001913]
[1721291972408,1.49987001,64809.0,64808.0,0.001913]
[1721291972610,1.58758639,64809.0,64808.0,0.001913]
[1721291972870,1.63859447,64809.0,64808.0,0.017713]
[1721291973166,0.55849847,64809.0,64808.0,0.163013]
[1721291973401,0.50377301,64809.0,64808.0,0.163013]
[1721291973610,0.50377301,64809.0,64808.0,0.16890359]
[1721291973756,0.1875732,64809.0,64808.0,0.32320459]
[1721291973959,0.0648892,64809.0,64808.0,0.94041059]
[1721291974203,0.01996473,64809.0,64808.0,1.25001359]
[1721291974951,0.01996473,64809.0,64808.0,1.24901359]
[1721291975361,0.01696473,64809.0,64808.0,1.24901359]
[1721291975781,0.01696473,64809.0,64808.0,1.25001359]
[1721291975988,0.01996473,64809.0,64808.0,1.25101359]
[1721291976973,0.02265237,64809.0,64808.0,1.25101359]
[1721291985398,0.02265237,64809.0,64808.0,0.94241059]
[1721291986700,0.02265237,64809.0,64808.0,0.57160759]
[1721291987019,0.02265237,64809.0,64808.0,0.48850759]
[1721291991516,0.02265237,64809.0,64808.0,0.02560359]
[1721291991717,0.94853111,64809.0,64808.0,0.02560359]
[1721291991980,0.94853111,64809.0,64808.0,0.019713]
[1721291992184,1.02743111,64809.0,64808.0,0.003913]
[1721291992378,1.25048476,64809.0,64808.0,0.003913]
[1721291992609,1.25049496,64809.0,64808.0,0.003913]
[1721291992811,1.1812398,64809.0,64808.0,0.003913]
[1721291993315,1.29772389,64809.0,64808.0,0.003913]
[1721291994534,1.69250795,64809.0,64808.0,0.003913]
[1721291994721,1.57708268,64809.0,64808.0,0.003913]
[1721291995429,1.88568168,64809.0,64808.0,0.003913]
[1721291995628,1.88709824,64809.0,64808.0,0.003913]
[1721291996028,1.88709824,64809.0,64808.0,0.001913]
[1721291996680,1.88709824,64809.0,64808.0,0.002913]
[1721291996852,1.88709824,64809.0,64808.0,0.001913]
[1721291997079,1.88409824,64809.0,64808.0,0.000913]
[1721291997255,1.88409824,64809.0,64808.0,0.001913]
[1721291997616,1.88709824,64809.0,64808.0,0.002913]
[1721291998093,1.88409824,64809.0,64808.0,0.001913]
[1721291998297,1.88409824,64809.0,64808.0,0.002913]
[1721291998298,1.88709824,64809.0,64808.0,0.002913]
[1721291998495,1.95739824,64809.0,64808.0,0.002913]
[1721291998708,1.90217299,64809.0,64808.0,0.002913]
[1721291998910,1.95688609,64809.0,64808.0,0.002913]
[1721292000277,2.13770117,64809.0,64808.0,0.002913]
[1721292000490,2.69192563,64809.0,64808.0,0.002913]
[1721292000908,2.50184744,64809.0,64808.0,0.002913]
[1721292001344,2.35340895,64809.0,64808.0,0.001913]
[1721292001506,2.50929693,64809.0,64808.0,0.001913]
[1721292001724,2.51229693,64809.0,64808.0,0.002913]
[1721292002903,2.35640895,64809.0,64808.0,0.002913]
[1721292003104,1.97750995,64809.0,64808.0,0.002913]
[1721292003308,2.04780995,64809.0,64808.0,0.002913]
[1721292003511,2.04780995,64809.0,64808.0,0.001913]
[1721292004133,2.04531203,64809.0,64808.0,0.001913]
[1721292004311,2.04531203,64809.0,64808.0,0.000913]
[1721292004505,2.04831203,64809.0,64808.0,0.001913]
[1721292004715,2.04831203,64809.0,64808.0,0.002913]
[1721292005250,2.04531203,64809.0,64808.0,0.001913]
[1721292005455,1.95778563,64809.0,64808.0,0.002913]
[1721292007254,1.90217299,64809.0,64808.0,0.002913]
[1721292007434,1.95756155,64809.0,64808.0,0.002913]
[1721292009806,2.07512186,64809.0,64808.0,0.002913]
[1721292010406,2.07479035,64809.0,64808.0,0.002913]
[1721292011303,1.97303004,64809.0,64808.0,0.002913]
[1721292012472,1.90273004,64809.0,64808.0,0.002913]
[1721292012630,1.97303004,64809.0,64808.0,0.002913]
[1721292013676,1.9732653,64809.0,64808.0,0.002913]
[1721292014237,2.06361762,64809.0,64808.0,0.002913]
[1721292015459,2.04479525,64809.0,64808.0,0.002913]
[1721292015912,2.08837068,64809.0,64808.0,0.002913]
[1721292016492,1.94272605,64809.0,64808.0,0.002913]
[1721292016703,2.08829757,64809.0,64808.0,0.002913]
[1721292017185,2.04472214,64809.0,64808.0,0.002913]
[1721292017387,1.98951986,64809.0,64808.0,0.002913]
[1721292017586,2.04496778,64809.0,64808.0,0.002913]
[1721292018195,2.18328819,64809.0,64808.0,0.002913]
[1721292019005,2.06379121,64809.0,64808.0,0.002913]
[1721292019701,1.91797405,64809.0,64808.0,0.002913]
[1721292019898,2.20222561,64809.0,64808.0,0.002913]
[1721292021204,1.35692761,64809.0,64808.0,0.002913]
[1721292021408,0.71958462,64809.0,64808.0,0.157313]
[1721292021846,0.76570087,64809.0,64808.0,0.157313]
[1721292022244,0.30280287,64809.0,64808.0,0.157313]
[1721292022446,0.30280287,64809.0,64808.0,0.156313]
[1721292022447,0.0724723,64809.0,64808.0,0.156313]
[1721292022646,0.0724723,64809.0,64808.0,0.16123297]
[1721292022647,0.01696473,64809.0,64808.0,0.16123297]
[1721292023175,0.01996473,64809.0,64808.0,0.16223297]
[1721292023749,0.78854447,64809.0,64808.0,0.09863297]
[1721292023906,0.78854447,64809.0,64808.0,0.00683297]
[1721292023907,1.44760516,64809.0,64808.0,0.00683297]
[1721292024105,1.47066202,64809.0,64808.0,0.000913]
[1721292024307,1.50149143,64809.0,64808.0,0.000913]
[1721292024507,1.59371889,64809.0,64808.0,0.001913]
[1721292024712,1.50417992,64809.0,64808.0,0.001913]
[1721292025672,1.44857519,64809.0,64808.0,0.000913]
[1721292025880,1.50508438,64809.0,64808.0,0.001913]
[1721292026026,1.59735077,64809.0,64808.0,0.000913]
[1721292026228,1.53005077,64809.0,64808.0,0.001913]
[1721292026447,1.53005077,64809.0,64808.0,0.002913]
[1721292026668,1.52705077,64809.0,64808.0,0.001913]
[1721292026964,1.53005077,64809.0,64808.0,0.002913]
[1721292027182,1.53005077,64809.0,64808.0,0.018713]
[1721292027402,1.22146891,64809.0,64808.0,0.018713]
[1721292027605,1.12918538,64809.0,64808.0,0.162013]
[1721292027943,1.12910078,64809.0,64808.0,0.162013]
[1721292028463,1.21838431,64809.0,64808.0,0.161013]
[1721292028664,1.12610078,64809.0,64808.0,0.161013]
[1721292028877,1.2213999,64809.0,64808.0,0.162013]
[1721292029288,1.2213999,64809.0,64808.0,0.161013]
[1721292029690,1.2213999,64809.0,64808.0,0.162013]
[1721292030293,1.12910078,64809.0,64808.0,0.162013]
[1721292031338,1.24447468,64809.0,64808.0,0.162013]
[1721292031697,1.24470123,64809.0,64808.0,0.162013]
[1721292032982,0.93610223,64809.0,64808.0,0.162013]
[1721292033416,0.82072833,64809.0,64808.0,0.162013]
[1721292033581,0.51212933,64809.0,64808.0,0.162013]
[1721292033768,0.6045129,64809.0,64808.0,0.16984701]
[1721292034596,0.29583216,64809.0,64808.0,0.16984701]
[1721292034838,0.17988802,64809.0,64808.0,0.16984701]
[1721292035185,0.27228048,64809.0,64808.0,0.16984701]
[1721292035384,0.17988802,64809.0,64808.0,0.16984701]
[1721292035581,0.07988802,64809.0,64808.0,0.32414801]
[1721292035787,0.01965322,64809.0,64808.0,0.94035401]
[1721292035988,0.01696473,64809.0,64808.0,0.96235401]
[1721292036246,0.01696473,64809.0,64808.0,1.27095701]
[1721292036462,0.01696473,64809.0,64808.0,1.27295701]
[1721292036656,0.01996473,64809.0,64808.0,1.27295701]
[1721292037269,0.01996473,64809.0,64808.0,1.27195701]
[1721292037623,0.01996473,64809.0,64808.0,1.27295701]
[1721292038078,0.01696473,64809.0,64808.0,1.27195701]
[1721292038474,0.01996473,64809.0,64808.0,1.27295701]
[1721292038841,0.02265241,64809.0,64808.0,1.27295701]
[1721292039054,0.01965241,64809.0,64808.0,1.27195701]
[1721292039265,0.01965241,64809.0,64808.0,1.27395701]
[1721292039465,0.02265241,64809.0,64808.0,1.27395701]
[1721292039914,0.02265241,64809.0,64808.0,1.27195701]
[1721292040125,0.02265241,64809.0,64808.0,0.94035401]
[1721292040323,0.02265241,64809.0,64808.0,0.63175101]
[1721292040549,0.02265241,64809.0,64808.0,0.65575101]
[1721292043525,0.02265241,64809.0,64808.0,0.16984701]
[1721292043720,0.17695141,64809.0,64808.0,0.10844701]
[1721292045560,0.02265241,64809.0,64808.0,0.10844701]
[1721292045948,0.02265241,64809.0,64808.0,0.94663977]
[1721292046146,0.02265241,64809.0,64808.0,0.96655401]
[1721292046391,0.02265241,64809.0,64808.0,1.27515701]
[1721292046792,0.02265241,64809.0,64808.0,1.50095701]
[1721292046991,0.02265241,64809.0,64808.0,1.45095701]
[1721292047434,0.01996473,64809.0,64808.0,1.45095701]
[1721292047653,0.01996473,64809.0,64808.0,1.50095701]
[1721292048186,0.01996473,64809.0,64808.0,1.45095701]
[1721292049209,0.01996473,64809.0,64808.0,1.27515701]
[1721292060119,0.01996473,64809.0,64808.0,0.90295401]
[1721292060375,0.01996473,64809.0,64808.0,0.02654701]
[1721292060752,0.79146173,64809.0,64808.0,0.02654701]
[1721292061086,0.48286273,64809.0,64808.0,0.018713]
[1721292061433,0.48286273,64809.0,64808.0,0.02649334]
[1721292061858,0.47986273,64809.0,64808.0,0.02549334]
[1721292062258,0.48286273,64809.0,64808.0,0.02649334]
[1721292063261,0.48286273,64809.0,64808.0,0.02549334]
[1721292063666,0.48286273,64809.0,64808.0,0.02649334]
[1721292068601,0.58286273,64809.0,64808.0,0.02649334]